[Event "*** Titled Tuesday Blitz"]
[Site "Chess.com"]
[Date "2021.03.16"]
[Round "2"]
[White "RamyresCoelho"]
[Black "Bacyanide"]
[Result "0-1"]
[WhiteElo "2073"]
[BlackElo "2415"]
[TimeControl "180+1"]
[EndTime "10:16:06 PDT"]
[Termination "Bacyanide won by resignation"]

1. e4 {[%clk 0:02:59.3]} 1... c6 {[%clk 0:02:58.4]} 2. d4 {[%clk 0:02:58.9]}
2... d5 {[%clk 0:02:59.3]} 3. Nc3 {[%clk 0:02:59.2]} 3... dxe4 {[%clk
0:02:59.4]} 4. Nxe4 {[%clk 0:02:59.5]} 4... Nf6 {[%clk 0:03:00.3]} 5. Nxf6+
{[%clk 0:02:59.3]} 5... exf6 {[%clk 0:03:01.2]} 6. Nf3 {[%clk 0:02:59.9]} 6...
Bd6 {[%clk 0:03:00.1]} 7. Bd3 {[%clk 0:03:00.1]} 7... O-O {[%clk 0:03:01]} 8.
Be3 {[%clk 0:02:59.3]} 8... Re8 {[%clk 0:03:01.2]} 9. Qd2 {[%clk 0:02:59.3]}
9... Nd7 {[%clk 0:03:01.8]} 10. O-O-O {[%clk 0:02:58.9]} 10... Nf8 {[%clk
0:03:02.3]} 11. Bf4 {[%clk 0:02:58.5]} 11... a5 {[%clk 0:03:01.7]} 12. Bxd6
{[%clk 0:02:48.4]} 12... Qxd6 {[%clk 0:03:02.6]} 13. Rhe1 {[%clk 0:02:37.4]}
13... Be6 {[%clk 0:03:00.8]} 14. c4 {[%clk 0:02:34.8]} 14... b5 {[%clk
0:02:54.3]} 15. c5 {[%clk 0:02:30.8]} 15... Qd5 {[%clk 0:02:53]} 16. Bb1 {[%clk
0:02:16.8]} 16... Red8 {[%clk 0:02:41.6]} 17. Qc2 {[%clk 0:01:50.1]} 17... a4
{[%clk 0:02:38.4]} 18. Rd2 {[%clk 0:01:45.5]} 18... g6 {[%clk 0:02:23.4]} 19. h4
{[%clk 0:01:40]} 19... Bf5 {[%clk 0:02:21.4]} 20. Qc3 {[%clk 0:01:34.4]} 20...
Ne6 {[%clk 0:02:17.9]} 21. Bxf5 {[%clk 0:01:34]} 21... Qxf5 {[%clk 0:02:18.8]}
22. g4 {[%clk 0:01:26.1]} 22... Qxg4 {[%clk 0:02:15.7]} 23. Rg1 {[%clk
0:01:26.3]} 23... Qf5 {[%clk 0:02:14.2]} 24. h5 {[%clk 0:01:12.6]} 24... Qxh5
{[%clk 0:02:08.8]} 25. Rdd1 {[%clk 0:01:04.3]} 25... Rd5 {[%clk 0:02:04.3]} 26.
Rh1 {[%clk 0:01:00.5]} 26... Qf5 {[%clk 0:02:02.7]} 27. Nh4 {[%clk 0:00:56.3]}
27... Qf4+ {[%clk 0:02:00.3]} 28. Kb1 {[%clk 0:00:56.4]} 28... Rxd4 {[%clk
0:01:57.3]} 29. Rxd4 {[%clk 0:00:50.4]} 29... Qxd4 {[%clk 0:01:58.2]} 30. Qf3
{[%clk 0:00:44.4]} 30... Rd8 {[%clk 0:01:49.9]} 31. a3 {[%clk 0:00:37.4]} 31...
Qd3+ {[%clk 0:01:48.2]} 32. Qxd3 {[%clk 0:00:35.3]} 32... Rxd3 {[%clk
0:01:49.1]} 33. Rc1 {[%clk 0:00:33.4]} 33... Rd4 {[%clk 0:01:42.9]} 34. Nf3
{[%clk 0:00:32.8]} 34... Rd5 {[%clk 0:01:43]} 35. Ka2 {[%clk 0:00:22.7]} 35...
h5 {[%clk 0:01:41.4]} 36. Rc3 {[%clk 0:00:21.2]} 36... Rxc5 {[%clk 0:01:39.8]}
37. Rxc5 {[%clk 0:00:21]} 37... Nxc5 {[%clk 0:01:40.7]} 38. Nd4 {[%clk
0:00:21.9]} 38... h4 {[%clk 0:01:40.2]} 39. Nxc6 {[%clk 0:00:22.2]} 39... h3
{[%clk 0:01:40.6]} 0-1

[Event "*** Titled Tuesday Blitz"]
[Site "Chess.com"]
[Date "2021.03.16"]
[Round "2"]
[White "Szparu"]
[Black "dennisodessa"]
[Result "1-0"]
[WhiteElo "2650"]
[BlackElo "2356"]
[TimeControl "180+1"]
[EndTime "10:16:07 PDT"]
[Termination "Szparu won by resignation"]

1. e4 {[%clk 0:03:00.9]} 1... e6 {[%clk 0:02:52.5]} 2. d4 {[%clk 0:02:59.9]}
2... d5 {[%clk 0:02:51.4]} 3. Nd2 {[%clk 0:02:57.2]} 3... Nf6 {[%clk 0:02:50.9]}
4. e5 {[%clk 0:02:56.7]} 4... Nfd7 {[%clk 0:02:51.2]} 5. Bd3 {[%clk 0:02:57.2]}
5... c5 {[%clk 0:02:51.1]} 6. c3 {[%clk 0:02:57.6]} 6... Nc6 {[%clk 0:02:52]} 7.
Ne2 {[%clk 0:02:57.2]} 7... cxd4 {[%clk 0:02:52.1]} 8. cxd4 {[%clk 0:02:57.2]}
8... f6 {[%clk 0:02:53]} 9. exf6 {[%clk 0:02:57.5]} 9... Qxf6 {[%clk 0:02:53.9]}
10. O-O {[%clk 0:02:58.1]} 10... h6 {[%clk 0:02:54.8]} 11. Nf3 {[%clk
0:02:55.3]} 11... Bd6 {[%clk 0:02:55.7]} 12. Ng3 {[%clk 0:02:47.9]} 12... O-O
{[%clk 0:02:56.6]} 13. Bb1 {[%clk 0:02:30]} 13... Rd8 {[%clk 0:02:55.4]} 14. Be3
{[%clk 0:02:19.3]} 14... Nf8 {[%clk 0:02:53.4]} 15. Re1 {[%clk 0:02:09.7]} 15...
Bd7 {[%clk 0:02:53.2]} 16. a3 {[%clk 0:01:58.8]} 16... Be8 {[%clk 0:02:52.9]}
17. b4 {[%clk 0:01:48.2]} 17... Bg6 {[%clk 0:02:52.6]} 18. Ba2 {[%clk
0:01:41.2]} 18... a5 {[%clk 0:02:50.6]} 19. b5 {[%clk 0:01:40.6]} 19... Na7
{[%clk 0:02:51.5]} 20. Ne5 {[%clk 0:01:14]} 20... Nxb5 {[%clk 0:02:46]} 21. Nxg6
{[%clk 0:01:14]} 21... Nxg6 {[%clk 0:02:41.6]} 22. Qg4 {[%clk 0:01:11]} 22...
Nc3 {[%clk 0:02:31.4]} 23. Bd2 {[%clk 0:00:54.2]} 23... Nxa2 {[%clk 0:01:54.8]}
24. Rxe6 {[%clk 0:00:51.2]} 24... Qh4 {[%clk 0:01:35.4]} 25. Rxg6 {[%clk
0:00:35.6]} 25... Qxg4 {[%clk 0:01:32]} 26. Rxg4 {[%clk 0:00:36.5]} 26... Bxa3
{[%clk 0:01:06.4]} 27. Rxa2 {[%clk 0:00:35.1]} 27... Bb4 {[%clk 0:01:06.5]} 28.
Bxh6 {[%clk 0:00:35]} 28... Kh7 {[%clk 0:01:00.6]} 29. Rxg7+ {[%clk 0:00:32]}
29... Kxh6 {[%clk 0:00:59.6]} 30. Nf5+ {[%clk 0:00:31.7]} 1-0

[Event "*** Titled Tuesday Blitz"]
[Site "Chess.com"]
[Date "2021.03.16"]
[Round "2"]
[White "ValeriyGrinev"]
[Black "Jumbo"]
[Result "0-1"]
[WhiteElo "2547"]
[BlackElo "2818"]
[TimeControl "180+1"]
[EndTime "10:16:08 PDT"]
[Termination "Jumbo won by resignation"]

1. d4 {[%clk 0:03:00.9]} 1... Nf6 {[%clk 0:02:58.4]} 2. c4 {[%clk 0:02:59.6]}
2... e6 {[%clk 0:02:56.5]} 3. Nc3 {[%clk 0:02:58.9]} 3... Bb4 {[%clk 0:02:53.8]}
4. e3 {[%clk 0:02:59.1]} 4... O-O {[%clk 0:02:50.5]} 5. Ne2 {[%clk 0:02:59]}
5... Re8 {[%clk 0:02:50.5]} 6. a3 {[%clk 0:02:58.7]} 6... Bf8 {[%clk 0:02:50.6]}
7. Ng3 {[%clk 0:02:59.2]} 7... d5 {[%clk 0:02:48.3]} 8. Be2 {[%clk 0:02:59.7]}
8... a5 {[%clk 0:02:38.4]} 9. O-O {[%clk 0:02:57.8]} 9... b6 {[%clk 0:02:34.6]}
10. cxd5 {[%clk 0:02:56.7]} 10... exd5 {[%clk 0:02:34.3]} 11. Bd2 {[%clk
0:02:40]} 11... Bb7 {[%clk 0:02:25.3]} 12. Rc1 {[%clk 0:02:40.2]} 12... Nbd7
{[%clk 0:02:25.7]} 13. Qc2 {[%clk 0:02:23.3]} 13... c5 {[%clk 0:02:14.6]} 14.
Nb5 {[%clk 0:02:17.6]} 14... g6 {[%clk 0:02:09.5]} 15. dxc5 {[%clk 0:02:10.5]}
15... bxc5 {[%clk 0:02:07.7]} 16. b4 {[%clk 0:02:10.9]} 16... axb4 {[%clk
0:01:53.3]} 17. axb4 {[%clk 0:02:11.8]} 17... cxb4 {[%clk 0:01:53.6]} 18. Nc7
{[%clk 0:02:06.7]} 18... Rc8 {[%clk 0:01:52.6]} 19. Nxe8 {[%clk 0:02:07.2]}
19... Rxc2 {[%clk 0:01:51.2]} 20. Nxf6+ {[%clk 0:02:08.1]} 20... Nxf6 {[%clk
0:01:48.4]} 21. Rxc2 {[%clk 0:02:09]} 21... d4 {[%clk 0:01:44.9]} 22. exd4
{[%clk 0:02:04]} 22... Qxd4 {[%clk 0:01:42.4]} 23. Be3 {[%clk 0:02:03.9]} 23...
Qd5 {[%clk 0:01:37.1]} 24. Bf3 {[%clk 0:02:02.9]} 24... Qb3 {[%clk 0:01:32.9]}
25. Rfc1 {[%clk 0:01:52.5]} 25... Bxf3 {[%clk 0:01:31.6]} 26. gxf3 {[%clk
0:01:53.4]} 26... Qd5 {[%clk 0:01:30.7]} 27. Rc8 {[%clk 0:01:51.4]} 27... Kg7
{[%clk 0:01:30.8]} 28. Kg2 {[%clk 0:01:29.3]} 28... h5 {[%clk 0:01:30.7]} 29.
Bh6+ {[%clk 0:01:25.4]} 29... Kxh6 {[%clk 0:01:30]} 30. Rxf8 {[%clk 0:01:26.3]}
30... h4 {[%clk 0:01:25.5]} 31. Rh8+ {[%clk 0:01:24.2]} 31... Kg7 {[%clk
0:01:22.2]} 32. Rxh4 {[%clk 0:01:22.7]} 32... Qb5 {[%clk 0:01:06.4]} 33. Rcc4
{[%clk 0:01:17.7]} 33... Nd5 {[%clk 0:01:04]} 34. Ne4 {[%clk 0:00:47.4]} 34...
Qxc4 {[%clk 0:00:56]} 0-1

[Event "*** Titled Tuesday Blitz"]
[Site "Chess.com"]
[Date "2021.03.16"]
[Round "2"]
[White "1977Ivan"]
[Black "FMJoseHerrera"]
[Result "1-0"]
[WhiteElo "2817"]
[BlackElo "2546"]
[TimeControl "180+1"]
[EndTime "10:16:11 PDT"]
[Termination "1977Ivan won by resignation"]

1. e4 {[%clk 0:03:00.9]} 1... c5 {[%clk 0:02:56.3]} 2. Nc3 {[%clk 0:02:59]} 2...
e6 {[%clk 0:02:56]} 3. f4 {[%clk 0:02:58.8]} 3... a6 {[%clk 0:02:55.3]} 4. Nf3
{[%clk 0:02:58.3]} 4... b5 {[%clk 0:02:55.1]} 5. g4 {[%clk 0:02:54]} 5... Bb7
{[%clk 0:02:52.6]} 6. d3 {[%clk 0:02:53.7]} 6... h6 {[%clk 0:02:42.8]} 7. Bg2
{[%clk 0:02:52.8]} 7... d6 {[%clk 0:02:24.4]} 8. O-O {[%clk 0:02:51.9]} 8... Nd7
{[%clk 0:02:23.9]} 9. f5 {[%clk 0:02:30]} 9... e5 {[%clk 0:02:13.7]} 10. a4
{[%clk 0:02:01.1]} 10... b4 {[%clk 0:02:11.9]} 11. Nd5 {[%clk 0:02:01.5]} 11...
Bxd5 {[%clk 0:02:11.1]} 12. exd5 {[%clk 0:02:01]} 12... Ngf6 {[%clk 0:02:11.4]}
13. Nd2 {[%clk 0:02:00.7]} 13... Be7 {[%clk 0:02:06.3]} 14. a5 {[%clk
0:01:58.8]} 14... Qc7 {[%clk 0:01:48]} 15. Nc4 {[%clk 0:01:58.4]} 15... Nh7
{[%clk 0:01:42.6]} 16. c3 {[%clk 0:01:57.3]} 16... Rb8 {[%clk 0:01:39.8]} 17.
Qa4 {[%clk 0:01:54.4]} 17... Kf8 {[%clk 0:01:29.6]} 18. Bd2 {[%clk 0:01:51.5]}
18... Bg5 {[%clk 0:01:26.7]} 19. Qc6 {[%clk 0:01:48.1]} 19... Qxc6 {[%clk
0:01:07.2]} 20. dxc6 {[%clk 0:01:49]} 20... Bxd2 {[%clk 0:01:07.8]} 21. Nxd2
{[%clk 0:01:47.7]} 21... Ndf6 {[%clk 0:01:02.3]} 22. Nc4 {[%clk 0:01:46.3]}
22... Ke7 {[%clk 0:00:59.7]} 23. Rfe1 {[%clk 0:01:36.2]} 23... bxc3 {[%clk
0:00:55.5]} 24. bxc3 {[%clk 0:01:37.1]} 24... Nxg4 {[%clk 0:00:55.2]} 25. d4
{[%clk 0:01:36.7]} 25... cxd4 {[%clk 0:00:50.3]} 26. cxd4 {[%clk 0:01:37.6]}
26... Rb4 {[%clk 0:00:50]} 27. Rac1 {[%clk 0:01:36.9]} 27... Rc8 {[%clk
0:00:33.3]} 28. Nb6 {[%clk 0:01:35]} 28... Kd8 {[%clk 0:00:27.7]} 29. dxe5
{[%clk 0:01:28.1]} 29... Nxe5 {[%clk 0:00:26.1]} 30. Rcd1 {[%clk 0:01:20.4]}
30... Kc7 {[%clk 0:00:20.1]} 31. Rxe5 {[%clk 0:01:19.1]} 31... Rxb6 {[%clk
0:00:17.9]} 32. Re7+ {[%clk 0:01:06.3]} 1-0

[Event "*** Titled Tuesday Blitz"]
[Site "Chess.com"]
[Date "2021.03.16"]
[Round "2"]
[White "vinniethepooh"]
[Black "Alekseyviktorovich"]
[Result "0-1"]
[WhiteElo "2703"]
[BlackElo "2418"]
[TimeControl "180+1"]
[EndTime "10:16:12 PDT"]
[Termination "Alekseyviktorovich won by checkmate"]

1. d4 {[%clk 0:03:00.9]} 1... d5 {[%clk 0:02:59.7]} 2. c4 {[%clk 0:03:01.2]}
2... c6 {[%clk 0:02:59.7]} 3. Nc3 {[%clk 0:03:01.6]} 3... Nf6 {[%clk 0:02:59.4]}
4. cxd5 {[%clk 0:03:02.1]} 4... cxd5 {[%clk 0:02:59.1]} 5. f3 {[%clk 0:03:02.7]}
5... Nc6 {[%clk 0:02:51.8]} 6. e4 {[%clk 0:03:02.9]} 6... e6 {[%clk 0:02:37.2]}
7. e5 {[%clk 0:03:02.8]} 7... Nd7 {[%clk 0:02:37.1]} 8. f4 {[%clk 0:03:03.2]}
8... Be7 {[%clk 0:02:30.2]} 9. Nf3 {[%clk 0:03:03.4]} 9... f6 {[%clk 0:02:30.3]}
10. Bd3 {[%clk 0:02:58.2]} 10... O-O {[%clk 0:02:24]} 11. h4 {[%clk 0:02:40.4]}
11... fxe5 {[%clk 0:02:18.7]} 12. dxe5 {[%clk 0:02:37.2]} 12... h6 {[%clk
0:02:05]} 13. Ng5 {[%clk 0:01:54.3]} 13... Ndxe5 {[%clk 0:01:53.6]} 14. fxe5
{[%clk 0:01:48.6]} 14... Nxe5 {[%clk 0:01:53.2]} 15. Bh7+ {[%clk 0:01:33.1]}
15... Kh8 {[%clk 0:01:52.2]} 16. Qe2 {[%clk 0:01:28.4]} 16... Bd6 {[%clk
0:01:42.8]} 17. Be3 {[%clk 0:01:16.9]} 17... Nc4 {[%clk 0:01:37.1]} 18. Bf2
{[%clk 0:00:41.7]} 18... Qf6 {[%clk 0:01:22.5]} 19. Bc2 {[%clk 0:00:28.3]} 19...
Bd7 {[%clk 0:01:05.6]} 20. Nf3 {[%clk 0:00:13.6]} 20... e5 {[%clk 0:00:51.1]}
21. O-O-O {[%clk 0:00:12.8]} 21... e4 {[%clk 0:00:48.7]} 22. Nxd5 {[%clk
0:00:12.9]} 22... Qxb2# {[%clk 0:00:47.9]} 0-1

[Event "*** Titled Tuesday Blitz"]
[Site "Chess.com"]
[Date "2021.03.16"]
[Round "2"]
[White "elohunter1999"]
[Black "Joker_Gumble"]
[Result "1-0"]
[WhiteElo "2627"]
[BlackElo "2335"]
[TimeControl "180+1"]
[EndTime "10:16:12 PDT"]
[Termination "elohunter1999 won on time"]

1. d4 {[%clk 0:03:00.9]} 1... c5 {[%clk 0:03:00.4]} 2. d5 {[%clk 0:03:00.5]}
2... Nf6 {[%clk 0:02:54.5]} 3. Nc3 {[%clk 0:02:59.4]} 3... d6 {[%clk 0:02:52]}
4. e4 {[%clk 0:02:58.8]} 4... e5 {[%clk 0:02:52.5]} 5. g3 {[%clk 0:02:55.2]}
5... a6 {[%clk 0:02:51.7]} 6. a4 {[%clk 0:02:55]} 6... Be7 {[%clk 0:02:50.5]} 7.
h4 {[%clk 0:02:55]} 7... h5 {[%clk 0:02:48.9]} 8. Bh3 {[%clk 0:02:54.7]} 8...
Ng4 {[%clk 0:02:38.9]} 9. f3 {[%clk 0:02:47.9]} 9... Bxh4 {[%clk 0:02:32.5]} 10.
fxg4 {[%clk 0:02:21.1]} 10... Bxg3+ {[%clk 0:02:27.6]} 11. Ke2 {[%clk
0:02:20.9]} 11... hxg4 {[%clk 0:02:17.5]} 12. Bg2 {[%clk 0:02:20.8]} 12... Rxh1
{[%clk 0:02:15.1]} 13. Bxh1 {[%clk 0:02:21.7]} 13... Qh4 {[%clk 0:02:04.8]} 14.
Bg2 {[%clk 0:02:21.3]} 14... Bf4 {[%clk 0:01:53.3]} 15. Qf1 {[%clk 0:02:14.8]}
15... g5 {[%clk 0:01:46.3]} 16. Be3 {[%clk 0:02:07.8]} 16... Nd7 {[%clk
0:01:12.5]} 17. Bf2 {[%clk 0:02:03.3]} 17... Qh5 {[%clk 0:01:03]} 18. Kd3 {[%clk
0:01:44.5]} 18... Nb6 {[%clk 0:00:54.9]} 19. b3 {[%clk 0:01:43.2]} 19... Bd7
{[%clk 0:00:36.5]} 20. a5 {[%clk 0:01:36.2]} 20... Nc8 {[%clk 0:00:23.1]} 21.
Nge2 {[%clk 0:01:35.8]} 21... Na7 {[%clk 0:00:20.7]} 22. Qh1 {[%clk 0:01:31.6]}
22... Qxh1 {[%clk 0:00:08.6]} 23. Rxh1 {[%clk 0:01:32.5]} 23... Ke7 {[%clk
0:00:06.9]} 24. Ng3 {[%clk 0:01:29.6]} 24... Nb5 {[%clk 0:00:06.5]} 25. Na4
{[%clk 0:01:20.7]} 25... Nd4 {[%clk 0:00:04.5]} 26. Nb6 {[%clk 0:01:16.4]} 26...
Be8 {[%clk 0:00:02.2]} 27. Bxd4 {[%clk 0:01:15.4]} 27... cxd4 {[%clk 0:00:01.1]}
28. Nf5+ {[%clk 0:01:15.4]} 1-0

[Event "*** Titled Tuesday Blitz"]
[Site "Chess.com"]
[Date "2021.03.16"]
[Round "2"]
[White "DishonorOnYourCow"]
[Black "MarcLonoff"]
[Result "1-0"]
[WhiteElo "2430"]
[BlackElo "2151"]
[TimeControl "180+1"]
[EndTime "10:16:12 PDT"]
[Termination "DishonorOnYourCow won on time"]

1. d4 {[%clk 0:03:00.9]} 1... e6 {[%clk 0:02:59.1]} 2. c4 {[%clk 0:03:01.1]}
2... Bb4+ {[%clk 0:02:55.8]} 3. Nd2 {[%clk 0:02:56.7]} 3... Nc6 {[%clk
0:02:42.4]} 4. Nf3 {[%clk 0:02:53.8]} 4... d6 {[%clk 0:02:40.3]} 5. e3 {[%clk
0:02:50.1]} 5... e5 {[%clk 0:02:33]} 6. a3 {[%clk 0:02:49.7]} 6... Bxd2+ {[%clk
0:02:32]} 7. Bxd2 {[%clk 0:02:48.6]} 7... e4 {[%clk 0:02:29.5]} 8. Ng1 {[%clk
0:02:48.4]} 8... f5 {[%clk 0:02:29.2]} 9. Qc2 {[%clk 0:02:48.9]} 9... Nf6 {[%clk
0:02:29.1]} 10. f3 {[%clk 0:02:49.4]} 10... O-O {[%clk 0:02:28.6]} 11. O-O-O
{[%clk 0:02:47.3]} 11... d5 {[%clk 0:02:25.4]} 12. cxd5 {[%clk 0:02:45.9]} 12...
Nxd5 {[%clk 0:02:25]} 13. fxe4 {[%clk 0:02:45.5]} 13... fxe4 {[%clk 0:02:22.6]}
14. Bc4 {[%clk 0:02:45.6]} 14... Kh8 {[%clk 0:02:11]} 15. Qxe4 {[%clk
0:02:34.1]} 15... Nb6 {[%clk 0:02:00.5]} 16. Qc2 {[%clk 0:01:56.1]} 16... Nxc4
{[%clk 0:01:47.7]} 17. Qxc4 {[%clk 0:01:57]} 17... Bg4 {[%clk 0:01:16.4]} 18.
Re1 {[%clk 0:01:48.8]} 18... Qd6 {[%clk 0:01:06.6]} 19. h3 {[%clk 0:01:45.5]}
19... Bh5 {[%clk 0:01:04.4]} 20. g4 {[%clk 0:01:44.9]} 20... Bg6 {[%clk
0:01:04.3]} 21. Ne2 {[%clk 0:01:43.1]} 21... a6 {[%clk 0:00:56.6]} 22. Nf4
{[%clk 0:01:42.3]} 22... Be4 {[%clk 0:00:56.2]} 23. Rhf1 {[%clk 0:01:39.9]}
23... b5 {[%clk 0:00:52.1]} 24. Qe6 {[%clk 0:01:35.7]} 24... Rxf4 {[%clk
0:00:27.6]} 25. Qxd6 {[%clk 0:01:29.9]} 25... Rxf1 {[%clk 0:00:27.3]} 26. Qe6
{[%clk 0:01:22.5]} 26... Rxe1+ {[%clk 0:00:23.5]} 27. Bxe1 {[%clk 0:01:23.4]}
27... Bg2 {[%clk 0:00:23]} 28. d5 {[%clk 0:01:23.4]} 28... Na7 {[%clk
0:00:13.5]} 29. Bc3 {[%clk 0:01:23.2]} 29... Rg8 {[%clk 0:00:08.9]} 30. h4
{[%clk 0:01:19.4]} 30... Nc8 {[%clk 0:00:08.7]} 31. h5 {[%clk 0:01:19.5]} 1-0

[Event "*** Titled Tuesday Blitz"]
[Site "Chess.com"]
[Date "2021.03.16"]
[Round "2"]
[White "PavelChernomordik"]
[Black "gxbg2000"]
[Result "1-0"]
[WhiteElo "2404"]
[BlackElo "1960"]
[TimeControl "180+1"]
[EndTime "10:16:23 PDT"]
[Termination "PavelChernomordik won by resignation"]

1. e4 {[%clk 0:03:00.9]} 1... e5 {[%clk 0:02:58.8]} 2. Nf3 {[%clk 0:03:00.4]}
2... Nc6 {[%clk 0:02:56.9]} 3. Bc4 {[%clk 0:02:59.7]} 3... Be7 {[%clk
0:02:56.2]} 4. d4 {[%clk 0:02:59.1]} 4... exd4 {[%clk 0:02:55.2]} 5. Nxd4 {[%clk
0:02:58.7]} 5... d6 {[%clk 0:02:55.9]} 6. O-O {[%clk 0:02:57.8]} 6... Nf6 {[%clk
0:02:56]} 7. Nc3 {[%clk 0:02:57.3]} 7... O-O {[%clk 0:02:55.9]} 8. h3 {[%clk
0:02:57.2]} 8... Nxd4 {[%clk 0:02:53.4]} 9. Qxd4 {[%clk 0:02:56.3]} 9... a6
{[%clk 0:02:54]} 10. a4 {[%clk 0:02:47.2]} 10... Bd7 {[%clk 0:02:26.9]} 11. Bf4
{[%clk 0:02:41.7]} 11... Bc6 {[%clk 0:02:26.3]} 12. Rfe1 {[%clk 0:02:40.7]}
12... Qd7 {[%clk 0:02:25.2]} 13. Rad1 {[%clk 0:02:39.6]} 13... Rad8 {[%clk
0:02:23.7]} 14. e5 {[%clk 0:02:30.9]} 14... dxe5 {[%clk 0:02:20.2]} 15. Qxe5
{[%clk 0:02:30.3]} 15... Bd6 {[%clk 0:02:14.9]} 16. Qg5 {[%clk 0:02:20.4]} 16...
h6 {[%clk 0:02:11.8]} 17. Qh4 {[%clk 0:02:19.4]} 17... Qf5 {[%clk 0:02:08.5]}
18. Bxd6 {[%clk 0:02:16.9]} 18... Rxd6 {[%clk 0:02:08]} 19. Rxd6 {[%clk
0:02:15.2]} 19... cxd6 {[%clk 0:02:07.9]} 20. Bd3 {[%clk 0:02:08.3]} 20... Qg5
{[%clk 0:01:59.3]} 21. Qxg5 {[%clk 0:02:04.7]} 21... hxg5 {[%clk 0:01:58.9]} 22.
a5 {[%clk 0:02:02.8]} 22... g4 {[%clk 0:01:58.9]} 23. hxg4 {[%clk 0:01:56.2]}
23... Nxg4 {[%clk 0:01:58.4]} 24. f4 {[%clk 0:01:56]} 24... g6 {[%clk
0:01:56.4]} 25. Re7 {[%clk 0:01:46.8]} 25... Rd8 {[%clk 0:01:50.9]} 26. g3
{[%clk 0:01:34.5]} 26... Kf8 {[%clk 0:01:49.8]} 27. Rc7 {[%clk 0:01:30.4]} 27...
Ra8 {[%clk 0:01:24.6]} 28. Bc4 {[%clk 0:01:25.6]} 28... Nh6 {[%clk 0:01:22.4]}
29. Kf2 {[%clk 0:01:21.3]} 29... Ke8 {[%clk 0:01:06]} 30. Bd5 {[%clk 0:01:16]}
30... Kd8 {[%clk 0:00:50.9]} 31. Rxc6 {[%clk 0:01:08.9]} 31... bxc6 {[%clk
0:00:50.5]} 32. Bxc6 {[%clk 0:01:08.5]} 32... Rb8 {[%clk 0:00:48.8]} 33. b3
{[%clk 0:01:07.7]} 33... Kc7 {[%clk 0:00:47.2]} 34. Bf3 {[%clk 0:01:02.6]} 34...
Kd7 {[%clk 0:00:45.2]} 35. Nd5 {[%clk 0:01:02]} 35... Ke6 {[%clk 0:00:40.7]} 36.
Nc7+ {[%clk 0:00:58.7]} 36... Kf5 {[%clk 0:00:38.3]} 37. Nxa6 {[%clk 0:00:57.7]}
37... Ra8 {[%clk 0:00:36.4]} 38. Bxa8 {[%clk 0:00:56.3]} 1-0

[Event "*** Titled Tuesday Blitz"]
[Site "Chess.com"]
[Date "2021.03.16"]
[Round "2"]
[White "tptagain"]
[Black "lagedema"]
[Result "1-0"]
[WhiteElo "2875"]
[BlackElo "2467"]
[TimeControl "180+1"]
[EndTime "10:16:26 PDT"]
[Termination "tptagain won by resignation"]

1. Nf3 {[%clk 0:02:59.9]} 1... d5 {[%clk 0:02:57.5]} 2. b3 {[%clk 0:02:59.9]}
2... Bg4 {[%clk 0:02:55.4]} 3. Bb2 {[%clk 0:03:00.2]} 3... Bxf3 {[%clk
0:02:54.8]} 4. exf3 {[%clk 0:02:59.4]} 4... c6 {[%clk 0:02:54.9]} 5. f4 {[%clk
0:02:58.9]} 5... Nf6 {[%clk 0:02:52.9]} 6. g3 {[%clk 0:02:54.9]} 6... g6 {[%clk
0:02:53.1]} 7. Bg2 {[%clk 0:02:54.3]} 7... Bg7 {[%clk 0:02:53.6]} 8. O-O {[%clk
0:02:54.9]} 8... O-O {[%clk 0:02:54.1]} 9. d4 {[%clk 0:02:53.3]} 9... a5 {[%clk
0:02:52.9]} 10. c4 {[%clk 0:02:52.6]} 10... a4 {[%clk 0:02:51.2]} 11. Nd2 {[%clk
0:02:46]} 11... Na6 {[%clk 0:02:47]} 12. bxa4 {[%clk 0:02:35.4]} 12... Nc7
{[%clk 0:02:36.2]} 13. Qb3 {[%clk 0:02:28.9]} 13... Qb8 {[%clk 0:02:30.9]} 14.
Bc3 {[%clk 0:02:24.6]} 14... dxc4 {[%clk 0:02:26.4]} 15. Nxc4 {[%clk 0:02:24.3]}
15... Nfd5 {[%clk 0:02:24.3]} 16. Bb2 {[%clk 0:02:01.9]} 16... Qa7 {[%clk
0:02:22.4]} 17. a5 {[%clk 0:01:58]} 17... Bxd4 {[%clk 0:02:19.5]} 18. Bxd4
{[%clk 0:01:58.1]} 18... Qxd4 {[%clk 0:02:20]} 19. Rfd1 {[%clk 0:01:58.4]} 19...
Qa7 {[%clk 0:01:59.3]} 20. Rab1 {[%clk 0:01:50.8]} 20... Rab8 {[%clk 0:01:53.2]}
21. h4 {[%clk 0:01:42.7]} 21... Rfd8 {[%clk 0:01:31.2]} 22. h5 {[%clk
0:01:37.3]} 22... Qc5 {[%clk 0:01:31.3]} 23. a4 {[%clk 0:01:08.2]} 23... Ne6
{[%clk 0:00:52.6]} 24. Bxd5 {[%clk 0:00:51.3]} 24... Rxd5 {[%clk 0:00:45.9]} 25.
Rxd5 {[%clk 0:00:45.8]} 25... cxd5 {[%clk 0:00:46.8]} 26. Ne5 {[%clk 0:00:44.9]}
26... Nd4 {[%clk 0:00:43.9]} 27. Qd3 {[%clk 0:00:39.3]} 27... Nf5 {[%clk
0:00:34.8]} 28. Nd7 {[%clk 0:00:35.4]} 1-0